bitfinex/quotes_BTCUSD_20241018
["timestamp","ask_amount","ask_price","bid_price","bid_amount"]
[1729238018475,0.29426,67967.0,67960.0,0.00485138]
[1729238018701,0.294269,67965.0,67960.0,0.00485138]
[1729238018953,0.29426,67967.0,67961.0,0.00485138]
[1729238018954,0.147138,67964.0,67961.0,0.00485138]
[1729238019644,0.29426,67967.0,67961.0,0.00485138]
[1729238019897,0.147139,67963.0,67961.0,0.00485138]
[1729238020338,0.21942817,67964.0,67955.0,0.0798]
[1729238020566,0.147148,67959.0,67957.0,0.00485138]
[1729238021467,0.147145,67961.0,67957.0,0.00485138]
[1729238021695,0.294282,67962.0,67957.0,0.00485138]
[1729238021696,0.147146,67960.0,67957.0,0.00485138]
[1729238021912,0.001,67959.0,67957.0,0.00485138]
[1729238022369,0.002,67959.0,67957.0,0.00485138]
[1729238022594,0.002,67959.0,67956.0,0.00485138]
[1729238022595,0.147151,67957.0,67956.0,0.00485138]
[1729238022820,0.147151,67957.0,67950.0,0.16631599]
[1729238022821,0.147155,67956.0,67952.0,0.005]
[1729238023061,0.147154,67956.0,67953.0,0.01226156]
[1729238023291,0.294299,67958.0,67954.0,0.01226156]
[1729238023531,0.147162,67952.0,67951.0,0.00485138]
[1729238023761,0.147173,67947.0,67946.0,0.00485138]
[1729238023985,0.147173,67947.0,67946.0,0.01711386]
[1729238024433,0.147173,67947.0,67938.0,0.21942817]
[1729238024434,0.00014862,67947.0,67932.0,0.02446794]
[1729238024678,0.00014862,67947.0,67937.0,0.21942817]
[1729238024679,0.147192,67939.0,67937.0,0.21942817]
[1729238024888,0.29436,67944.0,67936.0,0.147197]
[1729238025131,0.294355,67945.0,67937.0,0.00963895]
[1729238025354,0.147193,67938.0,67937.0,0.00963895]
[1729238025614,0.21942817,67946.0,67934.0,0.00485138]
[1729238025848,0.003,67939.0,67935.0,0.32133885]
[1729238026098,0.003,67939.0,67938.0,0.16204438]
[1729238026297,0.01,67947.0,67944.0,0.005]
[1729238026516,0.01,67947.0,67946.0,0.147175]
[1729238026739,0.01,67947.0,67944.0,0.005]
[1729238027028,0.01,67947.0,67944.0,0.446534]
[1729238027256,0.01,67947.0,67945.0,0.31349199]
[1729238027479,0.147169,67949.0,67945.0,0.31349199]
[1729238027704,0.147169,67949.0,67945.0,0.16631599]
[1729238027935,0.147165,67951.0,67947.0,0.147172]
[1729238028174,0.147167,67950.0,67949.0,0.16631599]
[1729238028846,0.294325,67952.0,67946.0,0.002]
[1729238029074,0.294321,67953.0,67950.0,0.16631599]
[1729238029319,0.294308,67956.0,67950.0,0.16631599]
[1729238029547,0.001,67951.0,67950.0,0.16631599]
[1729238029805,0.148164,67951.0,67950.0,0.16631599]
[1729238030056,0.001,67951.0,67950.0,0.16631599]
[1729238030288,0.001,67951.0,67950.0,0.47970989]
[1729238030528,0.001,67951.0,67950.0,0.51118985]
[1729238030999,0.21942817,67964.0,67950.0,0.51118985]
[1729238031000,0.21942817,67964.0,67962.0,0.147139]
[1729238031267,0.21942817,67964.0,67963.0,0.32559274]
[1729238031472,0.147124,67970.0,67965.0,0.147132]
[1729238031694,0.147124,67970.0,67963.0,0.17845474]
[1729238031695,0.147127,67969.0,67966.0,0.01226775]
[1729238031906,0.147127,67969.0,67967.0,0.01226966]
[1729238032257,0.294234,67974.0,67968.0,0.01226966]
[1729238032505,0.00014862,67975.0,67968.0,0.01226948]
[1729238032506,0.147126,67969.0,67968.0,0.01226948]
[1729238032738,0.00014862,67976.0,67968.0,0.01227184]
[1729238032969,0.147123,67970.0,67969.0,0.01521402]
[1729238033209,0.00014862,67976.0,67969.0,0.01227184]
[1729238033447,0.294225,67975.0,67970.0,0.01521401]
[1729238033689,0.147121,67971.0,67968.0,0.00294221]
[1729238033912,0.147121,67971.0,67969.0,0.01227444]
[1729238034158,0.294225,67975.0,67970.0,0.01227444]
[1729238034389,0.294234,67973.0,67971.0,0.01227444]
[1729238034815,0.147125,67969.0,67967.0,0.16925829]
[1729238035047,0.147125,67969.0,67968.0,0.01228017]
[1729238035280,0.147124,67970.0,67968.0,0.01228017]
[1729238035507,0.00014862,67975.0,67969.0,0.01228017]
[1729238035743,0.147122,67971.0,67970.0,0.01522233]
[1729238035978,0.147122,67971.0,67970.0,0.01228017]
[1729238036435,0.147122,67971.0,67970.0,0.0122874]
[1729238036667,0.147122,67971.0,67970.0,0.03195811]
[1729238036915,0.14712,67972.0,67970.0,0.03195811]
[1729238037143,0.294225,67975.0,67971.0,0.03195811]
[1729238037378,0.294225,67975.0,67972.0,0.03198116]
[1729238037613,0.147121,67972.0,67967.0,0.16631599]
[1729238037840,0.147115,67974.0,67968.0,0.17910961]
[1729238038067,0.294217,67977.0,67971.0,0.16631599]
[1729238038298,0.147113,67975.0,67972.0,0.0349247]
[1729238038643,0.147115,67974.0,67973.0,0.03198261]
[1729238039097,0.003,67974.0,67973.0,0.03198261]
[1729238039321,0.005,67974.0,67973.0,0.03198261]
[1729238039540,0.001656,67979.0,67973.0,0.05658851]
[1729238039754,0.294212,67978.0,67974.0,0.0565878]
[1729238039993,0.294212,67978.0,67975.0,0.03198261]
[1729238040217,0.22108417,67979.0,67973.0,0.147115]
[1729238040218,0.148761,67979.0,67973.0,0.147115]
[1729238040453,0.148761,67979.0,67972.0,0.005]
[1729238040454,0.147112,67976.0,67974.0,0.05659709]
[1729238040679,0.147112,67976.0,67975.0,0.03199384]
[1729238042248,0.151112,67976.0,67975.0,0.03199384]
[1729238042544,0.156112,67976.0,67975.0,0.03199384]
[1729238042986,0.441337,67975.0,67973.0,0.000828]
[1729238043206,0.147115,67974.0,67973.0,0.000828]
[1729238043430,0.147115,67974.0,67973.0,0.05748259]
[1729238045467,0.149115,67974.0,67973.0,0.05748259]
[1729238046358,0.152115,67974.0,67973.0,0.05748259]
[1729238047007,0.152115,67974.0,67973.0,0.05750614]
[1729238048343,0.147115,67974.0,67973.0,0.05750614]
[1729238048566,0.153115,67974.0,67973.0,0.05750614]
[1729238048786,0.158115,67974.0,67973.0,0.05750614]
[1729238050096,0.011,67974.0,67973.0,0.05750614]
[1729238050356,0.158115,67974.0,67973.0,0.05750614]
[1729238051476,0.158115,67974.0,67973.0,0.05749701]
[1729238052210,0.158115,67974.0,67973.0,0.20461401]
[1729238052211,0.011,67974.0,67973.0,0.20461401]
[1729238053101,0.011,67974.0,67973.0,0.36351504]
[1729238053311,0.011,67974.0,67973.0,0.37042454]
[1729238053537,0.001656,67979.0,67978.0,0.32042199]
[1729238053758,0.001656,67979.0,67978.0,0.52405015]
[1729238054932,0.001656,67979.0,67978.0,0.52401977]
[1729238055161,0.001656,67979.0,67978.0,0.53387115]
[1729238055834,0.001656,67979.0,67978.0,0.54685976]
[1729238056506,0.003656,67979.0,67978.0,0.81857575]
[1729238056737,0.003656,67979.0,67978.0,0.65225976]
[1729238056958,0.001656,67979.0,67978.0,0.64325976]
[1729238057176,0.002656,67979.0,67978.0,0.64525976]
[1729238057398,0.002656,67979.0,67978.0,0.64325976]
[1729238058272,0.003656,67979.0,67978.0,0.64925976]
[1729238058496,0.002656,67979.0,67978.0,0.64325976]
[1729238058720,0.002656,67979.0,67978.0,0.64326729]
[1729238058938,0.003656,67979.0,67978.0,0.65326729]
[1729238059179,0.002656,67979.0,67978.0,0.64126729]
[1729238059407,0.004656,67979.0,67978.0,0.66326729]
[1729238059644,0.004656,67979.0,67978.0,0.56686729]
[1729238059858,0.001656,67979.0,67978.0,0.54486729]
[1729238060079,0.002656,67979.0,67978.0,0.55486729]
[1729238060318,0.003656,67979.0,67978.0,0.56686729]
[1729238062769,0.003656,67979.0,67978.0,0.51022866]
[1729238062988,0.003656,67979.0,67978.0,0.78838703]
[1729238063212,0.003656,67979.0,67978.0,0.54563017]
[1729238063431,0.21942817,67989.0,67988.0,0.152084]
[1729238063653,0.21942817,67989.0,67988.0,0.46735914]
[1729238063877,0.001656,67991.0,67989.0,0.147081]
[1729238064103,0.001656,67991.0,67990.0,0.07727867]
[1729238064367,0.001656,67991.0,67990.0,0.05673026]
[1729238065717,0.002656,67991.0,67990.0,0.05673026]
[1729238066181,0.149734,67991.0,67990.0,0.05673026]
[1729238066402,0.150734,67991.0,67990.0,0.05673026]
[1729238066856,0.44489,67991.0,67990.0,0.03204888]
[1729238068193,0.52099,67991.0,67990.0,0.03204888]
[1729238075072,0.373912,67991.0,67982.0,0.147096]
[1729238075328,0.079756,67991.0,67988.0,0.21942817]
[1729238075559,0.079756,67991.0,67989.0,0.0567416]
[1729238075560,0.373912,67991.0,67989.0,0.0567416]
[1729238075772,0.373912,67991.0,67983.0,0.31660968]
[1729238075987,0.371912,67991.0,67984.0,0.20383323]
[1729238076209,0.147089,67986.0,67985.0,0.05674123]
[1729238078480,0.147086,67988.0,67985.0,0.05674123]
[1729238078740,0.147083,67989.0,67985.0,0.05674123]
[1729238078944,0.147081,67990.0,67986.0,0.05674123]
[1729238079148,0.077756,67991.0,67985.0,0.00694151]
[1729238079149,0.147083,67989.0,67987.0,0.05674123]
[1729238079379,0.147081,67990.0,67988.0,0.05968274]
[1729238079586,0.148734,67991.0,67989.0,0.05674123]
[1729238079847,0.14708,67990.0,67987.0,0.02055553]
[1729238080073,0.001656,67991.0,67988.0,0.05680959]
[1729238080290,0.147081,67990.0,67989.0,0.05680959]
[1729238080935,0.147081,67990.0,67989.0,0.05780959]
[1729238081372,0.148735,67991.0,67989.0,0.05780959]
[1729238081603,0.001656,67991.0,67989.0,0.07836512]
[1729238081821,0.001656,67991.0,67990.0,0.05680959]
[1729238082050,0.148734,67991.0,67990.0,0.05680959]
[1729238082283,0.001656,67991.0,67990.0,0.05680959]
[1729238082516,0.001656,67991.0,67990.0,0.07736512]
[1729238082961,0.14708,67990.0,67989.0,0.003]
[1729238083168,0.14708,67990.0,67989.0,0.0598681]
[1729238083377,0.14708,67990.0,67989.0,0.0588681]
[1729238083602,0.001656,67991.0,67989.0,0.07747318]
[1729238083824,0.001656,67991.0,67990.0,0.0568681]
[1729238084025,0.148734,67991.0,67990.0,0.07847318]
[1729238084700,0.001656,67991.0,67990.0,0.07947318]
[1729238085200,0.001656,67991.0,67990.0,0.06990192]
[1729238085425,0.001656,67991.0,67990.0,0.06890192]
[1729238086311,0.081856,67991.0,67990.0,0.06890192]
[1729238086524,0.001656,67991.0,67990.0,0.38814929]
[1729238087015,0.001656,67991.0,67990.0,0.38812632]
[1729238087254,0.001656,67991.0,67990.0,0.33327655]
[1729238087434,0.001656,67991.0,67990.0,0.38812625]
[1729238088127,0.147069,67995.0,67992.0,0.00485138]
[1729238088331,0.147069,67995.0,67993.0,0.06787888]
[1729238088540,0.294128,67998.0,67994.0,0.06787888]
[1729238088541,0.147067,67997.0,67994.0,0.06787888]
[1729238088752,0.147068,67996.0,67995.0,0.06787888]
[1729238089201,0.294128,67998.0,67995.0,0.06787888]
[1729238089424,0.0822,67999.0,67996.0,0.06787888]
[1729238089425,0.002,67999.0,67996.0,0.06787888]
[1729238089641,0.002,67999.0,67994.0,0.16631599]
[1729238089642,0.147065,67997.0,67994.0,0.16631599]
[1729238089843,0.147067,67996.0,67995.0,0.06781324]
[1729238090113,0.224467,67996.0,67995.0,0.05679413]
[1729238090288,0.224467,67996.0,67995.0,0.07737251]
[1729238090289,0.228467,67996.0,67995.0,0.07737251]
[1729238090524,0.228467,67996.0,67995.0,0.05679413]
[1729238091601,0.149061,67999.0,67995.0,0.05679413]
[1729238091833,0.002,67999.0,67997.0,0.02057717]
[1729238092056,0.002,67999.0,67998.0,0.07737126]
[1729238092262,0.149061,67999.0,67998.0,0.07737126]
[1729238092469,0.002,67999.0,67998.0,0.05679413]
[1729238092689,0.14906,67999.0,67998.0,0.05679413]
[1729238092893,0.14906,67999.0,67998.0,0.20385713]
[1729238092894,0.002,67999.0,67998.0,0.20385713]
[1729238093108,0.002,67999.0,67998.0,0.2148742]
[1729238093538,0.002,67999.0,67998.0,0.53794167]
[1729238093755,0.002,67999.0,67998.0,0.37868473]
[1729238094003,0.002,67999.0,67998.0,0.54500072]
[1729238094213,0.002,67999.0,67998.0,0.54800072]
[1729238094465,2.0,68000.0,67998.0,0.54800072]
[1729238094466,2.0,68000.0,67999.0,0.16391138]
[1729238094692,2.0,68000.0,67999.0,0.38767053]
[1729238095148,1.93891524,68000.0,67999.0,0.38767053]
[1729238095392,1.93891524,68000.0,67999.0,0.47887053]
[1729238095828,1.93891524,68000.0,67999.0,0.5466086]
[1729238096237,1.64996169,68000.0,67999.0,0.5836086]
[1729238096440,1.65096169,68000.0,67999.0,0.5836086]
[1729238096660,1.1194859,68000.0,67999.0,0.6836086]
[1729238096881,0.96585365,68000.0,67999.0,0.6836086]
[1729238097116,4e-05,68010.0,68006.0,0.18689638]
[1729238097334,4e-05,68010.0,68006.0,0.82522049]
[1729238098012,4e-05,68010.0,68006.0,0.6589045]
[1729238098266,4e-05,68010.0,68006.0,0.84102049]
[1729238098498,0.003,68007.0,68006.0,0.85502049]
[1729238098724,4e-05,68010.0,68009.0,0.26389038]
[1729238098946,4e-05,68010.0,68009.0,0.49258251]
[1729238099692,0.001656,68013.0,68012.0,0.26388338]
[1729238099912,0.21942817,68033.0,68020.0,0.01485138]
[1729238100137,0.21942817,68033.0,68020.0,0.38802764]
[1729238100138,0.21942817,68026.0,68020.0,0.38802764]
[1729238100354,0.21942817,68026.0,68020.0,0.36755851]
[1729238100569,0.21942817,68033.0,68020.0,0.36730078]
[1729238101903,0.36641717,68033.0,68020.0,0.36730078]
[1729238102127,0.16631599,68030.0,68020.0,0.36730078]
[1729238102334,0.146997,68029.0,68020.0,0.36730078]
[1729238102557,0.16631599,68030.0,68020.0,0.36730078]
[1729238102764,0.083496,68021.0,68020.0,0.07532663]
[1729238103041,0.083496,68021.0,68020.0,0.06477201]
[1729238103478,0.083496,68021.0,68020.0,0.21178701]
[1729238104321,0.083496,68021.0,68020.0,0.23634163]
[1729238104532,0.083496,68021.0,68020.0,0.38530078]
[1729238104774,0.083496,68021.0,68020.0,0.36074616]
[1729238104964,0.083496,68021.0,68020.0,0.38530078]
[1729238105170,0.083496,68021.0,68020.0,0.06477201]
[1729238105784,0.083496,68021.0,68020.0,0.05992063]
[1729238105995,0.083496,68021.0,68020.0,0.04592063]
[1729238106537,0.082496,68021.0,68020.0,0.03192063]
[1729238106758,0.082496,68021.0,68020.0,0.03392063]
[1729238107166,0.082496,68021.0,68020.0,0.03388322]
[1729238107337,0.082496,68021.0,68020.0,0.04088322]
[1729238107563,0.329109,68021.0,68020.0,0.04088539]
[1729238107894,0.329109,68021.0,68020.0,0.03388539]
[1729238108830,0.329109,68021.0,68020.0,0.03188539]
[1729238109037,0.329109,68021.0,68020.0,0.03288539]
[1729238109247,0.329109,68021.0,68020.0,0.03388539]
[1729238109469,0.329109,68021.0,68020.0,0.03288539]
[1729238109912,0.332109,68021.0,68020.0,0.03288539]
[1729238110331,0.329109,68021.0,68020.0,0.03188539]
[1729238110590,0.329109,68021.0,68020.0,0.05642933]
[1729238110796,0.332109,68021.0,68020.0,0.05642933]
[1729238111025,0.332109,68021.0,68020.0,0.03188539]
[1729238111225,0.329109,68021.0,68020.0,0.03188539]
[1729238111436,0.332109,68021.0,68020.0,0.05643504]
[1729238111644,0.49842499,68021.0,68020.0,0.05643504]
[1729238112497,0.49542499,68021.0,68020.0,0.05643504]
[1729238113138,0.49742499,68021.0,68020.0,0.05643504]
[1729238113566,0.66374098,68021.0,68020.0,0.03188539]
[1729238113774,0.49742499,68021.0,68020.0,0.03188539]
[1729238113991,0.49742499,68021.0,68020.0,0.01226354]
[1729238114208,0.49942499,68021.0,68020.0,0.01226354]
[1729238114461,0.333109,68021.0,68020.0,0.01226354]
[1729238114692,0.49942499,68021.0,68020.0,0.01226354]
[1729238114948,0.49942499,68021.0,68020.0,0.03192572]
[1729238115170,0.333109,68021.0,68020.0,0.03192572]
[1729238115388,0.49942499,68021.0,68020.0,0.03192572]
[1729238117861,0.147015,68020.0,68014.0,0.147026]
[1729238118062,0.14702,68018.0,68015.0,0.0565697]
[1729238118273,0.14702,68018.0,68014.0,0.147026]
[1729238118274,0.14702,68018.0,68016.0,0.0565697]
[1729238118483,0.441048,68020.0,68017.0,0.0565697]
[1729238118692,0.184096,68021.0,68018.0,0.0565697]
[1729238118891,0.182096,68021.0,68019.0,0.0565697]
[1729238119217,0.182096,68021.0,68016.0,0.147023]
[1729238119218,0.149016,68020.0,68016.0,0.147023]
[1729238119420,0.148016,68020.0,68017.0,0.05658483]
[1729238119596,0.148016,68020.0,68018.0,0.05658483]
[1729238119801,0.147017,68019.0,68016.0,0.02049966]
[1729238120012,0.147017,68019.0,68017.0,0.05659034]
[1729238120235,0.147017,68019.0,68016.0,0.02049966]
[1729238120236,0.147017,68019.0,68018.0,0.05659034]
[1729238121453,0.147017,68019.0,68018.0,0.05763586]
[1729238121907,0.147017,68019.0,68018.0,0.05663586]
[1729238123355,0.005,68019.0,68015.0,0.00294021]
[1729238123579,0.005,68019.0,68018.0,0.147019]
[1729238123778,0.005,68019.0,68018.0,0.29597815]
[1729238124019,0.01,68019.0,68018.0,0.29597815]
[1729238124273,0.01,68019.0,68018.0,0.3057694]
[1729238124515,0.01,68019.0,68018.0,0.372433]
[1729238124516,0.005,68019.0,68018.0,0.372433]
[1729238124765,0.001656,68031.0,68030.0,0.146993]
[1729238124990,0.001656,68031.0,68030.0,0.2036566]
[1729238125605,0.001656,68031.0,68030.0,0.0566636]
[1729238126017,0.40566299,68031.0,68030.0,0.0566636]
[1729238126230,0.40666299,68031.0,68030.0,0.0626636]
[1729238126434,0.48876299,68031.0,68030.0,0.0626636]
[1729238126651,0.175456,68031.0,68030.0,0.0626636]
[1729238127244,0.175456,68031.0,68030.0,0.2096566]
[1729238127451,0.084756,68031.0,68030.0,0.2096566]
[1729238127894,0.084756,68031.0,68030.0,0.0626636]
[1729238128107,0.084756,68031.0,68030.0,0.0666636]
[1729238128556,0.083756,68031.0,68030.0,0.0566636]
[1729238128982,0.083756,68031.0,68030.0,0.0606636]
[1729238130066,0.083756,68031.0,68030.0,0.0666636]
[1729238130501,0.083756,68031.0,68030.0,0.0626636]
[1729238130966,0.083756,68031.0,68030.0,0.0666636]
[1729238131395,0.083756,68031.0,68030.0,0.0626636]
[1729238131609,0.083756,68031.0,68030.0,0.006]
[1729238131830,0.230747,68031.0,68030.0,0.06064888]
[1729238132285,0.230747,68031.0,68030.0,0.06264888]
[1729238132734,0.083756,68031.0,68030.0,0.06264888]
[1729238132935,0.083756,68031.0,68030.0,0.05664888]
[1729238133145,0.230747,68031.0,68030.0,0.05664888]
[1729238133361,0.230747,68031.0,68030.0,0.05764888]
[1729238133828,0.230747,68031.0,68030.0,0.06064888]
[1729238134503,0.230747,68031.0,68030.0,0.05664888]
[1729238134730,0.230747,68031.0,68030.0,0.05864888]
[1729238135478,0.230747,68031.0,68030.0,0.06064194]
[1729238135736,0.323247,68031.0,68030.0,0.06064194]
[1729238135934,0.323247,68031.0,68030.0,0.05864194]
[1729238136166,0.323247,68031.0,68030.0,0.06164194]
[1729238136653,0.323247,68031.0,68030.0,0.05864194]
[1729238136877,0.323247,68031.0,68030.0,0.05664194]
[1729238137327,0.324247,68031.0,68030.0,0.05664194]
[1729238137805,0.176256,68031.0,68030.0,0.05664194]
[1729238138252,0.323247,68031.0,68030.0,0.05664194]
[1729238138480,0.326247,68031.0,68030.0,0.05664194]
[1729238138933,0.323247,68031.0,68030.0,0.05664194]
[1729238139174,0.323247,68031.0,68030.0,0.05864194]
[1729238139407,0.323247,68031.0,68030.0,0.05664194]
[1729238139852,0.323247,68031.0,68030.0,0.06064194]
[1729238140099,0.323247,68031.0,68030.0,0.05664194]
[1729238140315,0.323247,68031.0,68030.0,0.05964194]
[1729238140773,0.323247,68031.0,68030.0,0.05864194]
[1729238141220,0.323247,68031.0,68030.0,0.05964194]
[1729238141445,0.323247,68031.0,68030.0,0.08015507]
[1729238141664,0.323247,68031.0,68030.0,0.07915507]
[1729238142075,0.323247,68031.0,68030.0,0.05664194]
[1729238142292,0.323247,68031.0,68030.0,0.07815508]
[1729238142731,0.323247,68031.0,68030.0,0.07715508]
[1729238143383,0.323247,68031.0,68030.0,0.07713023]
[1729238143602,0.324247,68031.0,68030.0,0.07813023]
[1729238143842,0.324247,68031.0,68030.0,0.07713023]
[1729238144580,0.323247,68031.0,68030.0,0.07713023]
[1729238145505,0.323247,68031.0,68030.0,0.05661657]
[1729238145942,0.323247,68031.0,68030.0,0.05761657]
[1729238146174,0.323247,68031.0,68030.0,0.05661657]
[1729238146402,0.323247,68031.0,68030.0,0.05761657]
[1729238146864,0.176256,68031.0,68030.0,0.05761657]
[1729238147353,0.323247,68031.0,68030.0,0.05765813]
[1729238147821,0.176256,68031.0,68030.0,0.05765813]
[1729238148049,0.323247,68031.0,68030.0,0.05865813]
[1729238148986,0.323247,68031.0,68030.0,0.05765813]
[1729238149199,0.323247,68031.0,68030.0,0.05965813]
[1729238150367,0.176256,68031.0,68030.0,0.05965813]
[1729238150584,0.323247,68031.0,68030.0,0.05965813]
[1729238150815,0.32125772,68031.0,68030.0,0.05965813]
[1729238151512,0.17426672,68031.0,68030.0,0.05975274]
[1729238152489,0.001658,68034.0,68033.0,0.31830299]
[1729238152712,0.001658,68034.0,68033.0,0.54160186]
[1729238152931,0.001658,68035.0,68034.0,0.151985]
[1729238153137,0.001658,68035.0,68034.0,0.37528387]
[1729238153838,0.001658,68035.0,68034.0,0.37028387]
[1729238154076,0.001658,68035.0,68034.0,0.07433972]
[1729238154519,0.004658,68035.0,68034.0,0.05675274]
[1729238154938,0.004658,68035.0,68034.0,0.07433972]
[1729238155149,0.004658,68035.0,68034.0,0.20571189]
[1729238155391,0.006658,68035.0,68034.0,0.22329887]
[1729238155617,0.006658,68035.0,68034.0,0.29594415]
[1729238155864,0.006658,68035.0,68034.0,0.35270716]
[1729238156088,0.006658,68035.0,68034.0,0.37029414]
[1729238156781,0.003658,68035.0,68034.0,0.37029414]
[1729238156991,0.003658,68035.0,68034.0,0.37429414]
[1729238157648,0.001658,68035.0,68034.0,0.37029414]
[1729238158080,0.002658,68035.0,68034.0,0.39829414]
[1729238158546,0.001656,68037.0,68036.0,0.16383238]
[1729238158768,0.001656,68037.0,68036.0,0.55345751]
[1729238158985,0.001656,68037.0,68036.0,0.59931809]
[1729238159434,0.001656,68037.0,68036.0,0.63626496]
[1729238159681,0.001656,68037.0,68036.0,0.59930858]
[1729238160118,0.002656,68037.0,68036.0,0.60630858]
[1729238160870,0.002656,68037.0,68036.0,0.62930858]
[1729238161084,0.002656,68037.0,68036.0,0.63830858]
[1729238161857,0.002656,68037.0,68036.0,1.1626847]
[1729238162062,0.001656,68047.0,68041.0,0.18682138]
[1729238162332,0.001656,68047.0,68041.0,0.68546818]
[1729238162533,0.001656,68047.0,68041.0,0.64155192]
[1729238163210,0.001656,68047.0,68041.0,0.74155192]
[1729238163433,0.001656,68047.0,68041.0,0.55023593]
[1729238163655,0.001656,68047.0,68041.0,0.50437535]
[1729238163869,0.001656,68047.0,68041.0,0.51837535]
[1729238164089,0.001656,68047.0,68046.0,0.16181038]
[1729238164306,0.001656,68047.0,68046.0,0.36740797]
[1729238165648,0.001656,68047.0,68046.0,0.38140797]
[1729238166313,0.001656,68047.0,68046.0,0.32476953]
[1729238166535,0.001656,68047.0,68046.0,0.38128082]
[1729238166751,0.001656,68047.0,68046.0,0.39528082]
[1729238167226,0.001656,68047.0,68046.0,0.38128082]
[1729238167467,0.0807,68050.0,68049.0,0.15180338]
[1729238167685,0.0807,68050.0,68049.0,0.35727382]
[1729238169502,0.0807,68050.0,68049.0,0.37127382]
[1729238169939,0.0807,68050.0,68049.0,0.07051129]
[1729238170164,0.0807,68050.0,68049.0,0.05820525]
[1729238170376,0.0807,68050.0,68049.0,0.0753357]
[1729238170596,0.0807,68050.0,68049.0,0.07048432]
[1729238170880,0.0807,68050.0,68049.0,0.0753357]
[1729238171118,0.0807,68050.0,68049.0,0.23849279]
[1729238171347,0.0807,68050.0,68049.0,0.38745194]
[1729238171999,0.0971,68053.0,68052.0,0.146946]
[1729238172217,0.0971,68053.0,68052.0,0.35238947]
[1729238173550,0.0971,68053.0,68052.0,0.35838947]
[1729238174898,0.09691248,68053.0,68052.0,0.36638947]
[1729238177774,0.09691248,68053.0,68052.0,0.30990515]
[1729238177989,0.09691248,68053.0,68052.0,0.21948705]
[1729238178210,0.09691248,68053.0,68052.0,0.36643373]
[1729238180252,0.09691248,68053.0,68052.0,0.07052858]
[1729238180481,0.17721248,68053.0,68052.0,0.07052858]
[1729238180698,0.32415648,68053.0,68052.0,0.07052858]
[1729238180909,0.17721248,68053.0,68052.0,0.07052858]
[1729238184770,0.17886848,68053.0,68052.0,0.07052858]
[1729238185445,0.17886848,68053.0,68052.0,0.08153016]
[1729238185668,0.17886848,68053.0,68052.0,0.0815336]
[1729238185669,0.14577246,68053.0,68052.0,0.0815336]
[1729238187552,0.14577246,68053.0,68052.0,0.08154074]
[1729238191795,0.44182423,68053.0,68052.0,0.07052858]
[1729238192036,0.44682423,68053.0,68052.0,0.07052858]
[1729238192255,0.146959,68046.0,68045.0,0.02055458]
[1729238192519,0.48658099,68043.0,68042.0,0.21942817]
[1729238192995,0.146974,68039.0,68038.0,0.02055458]
[1729238193238,0.146974,68039.0,68031.0,0.058827]
[1729238193239,0.146978,68037.0,68036.0,0.22025617]
[1729238193467,0.226478,68037.0,68036.0,0.22025617]
[1729238193686,0.226478,68037.0,68036.0,0.000828]
[1729238196490,0.227478,68037.0,68036.0,0.000828]
[1729238196972,0.32362662,68037.0,68036.0,0.001828]
[1729238197449,0.57658577,68037.0,68036.0,0.000828]
[1729238197666,0.57958577,68037.0,68036.0,0.000828]
[1729238198088,0.62242272,68037.0,68036.0,0.000828]
[1729238198323,0.62242272,68037.0,68036.0,0.001828]
[1729238198324,0.62249913,68037.0,68036.0,0.001828]
[1729238198541,0.62249913,68037.0,68028.0,0.21942817]
[1729238198542,0.32334462,68029.0,68028.0,0.21942817]
[1729238198754,0.48966061,68029.0,68028.0,0.21942817]
[1729238198965,0.147011,68022.0,68021.0,0.22025617]
[1729238199395,0.0802,68022.0,68021.0,0.22025617]
[1729238199617,0.0802,68022.0,68021.0,0.000828]
[1729238199833,0.227211,68022.0,68021.0,0.000828]
[1729238200260,0.227211,68022.0,68021.0,0.02541138]
[1729238200705,0.230211,68022.0,68021.0,0.02541138]
[1729238200921,0.230211,68022.0,68021.0,0.02523786]
[1729238201573,0.37734806,68022.0,68021.0,0.02523786]
[1729238201846,0.37734806,68022.0,68021.0,0.002828]
[1729238201847,0.324911,68022.0,68021.0,0.002828]
[1729238202333,0.321911,68022.0,68021.0,0.0203487]
[1729238202554,0.321911,68022.0,68021.0,0.04874892]
[1729238202788,0.321911,68022.0,68021.0,0.04674892]
[1729238203265,0.1749,68022.0,68021.0,0.04474892]
[1729238203535,0.324911,68022.0,68021.0,0.04474892]
[1729238203992,0.321911,68022.0,68021.0,0.04474892]
[1729238204214,0.323911,68022.0,68021.0,0.05694254]
[1729238204443,0.321911,68022.0,68021.0,0.05794254]
[1729238204701,0.321911,68022.0,68021.0,0.001828]
[1729238204919,0.321911,68022.0,68021.0,0.05990947]
[1729238209940,0.1749,68022.0,68021.0,0.05990947]
[1729238210154,0.321911,68022.0,68021.0,0.05990947]
[1729238210373,0.1749,68022.0,68021.0,0.05990947]
[1729238210801,0.321911,68022.0,68021.0,0.05990947]
[1729238211476,0.321911,68022.0,68021.0,0.08022928]
[1729238212584,0.1749,68022.0,68021.0,0.08022928]
[1729238213469,0.1749,68022.0,68021.0,0.05990947]
[1729238214609,0.07734862,68026.0,68023.0,0.147007]
[1729238214825,0.0772,68026.0,68024.0,0.05608147]
[1729238215042,0.00014862,68028.0,68025.0,0.20308547]
[1729238215275,0.0974,68029.0,68026.0,0.20308247]
[1729238215478,0.0974,68029.0,68027.0,0.05608147]
[1729238215692,0.0974,68029.0,68028.0,0.05608147]
[1729238216148,0.24454462,68029.0,68028.0,0.05608147]
[1729238216800,0.24954462,68029.0,68028.0,0.05608147]
[1729238217943,0.25454462,68029.0,68028.0,0.05608147]
[1729238218161,0.24954462,68029.0,68028.0,0.05608147]
[1729238218390,0.24954462,68029.0,68028.0,0.05808147]
[1729238218829,0.24454462,68029.0,68028.0,0.05808147]
[1729238219050,0.32174462,68029.0,68028.0,0.05608147]
[1729238219274,0.32274462,68029.0,68028.0,0.05608147]
[1729238219913,0.32174462,68029.0,68028.0,0.05608147]
[1729238221460,0.32374462,68029.0,68028.0,0.05608147]
[1729238221921,0.32674462,68029.0,68028.0,0.05608147]
[1729238222155,0.33274462,68029.0,68028.0,0.05708147]
[1729238222373,0.32174462,68029.0,68028.0,0.05608147]
[1729238222845,0.33274462,68029.0,68028.0,0.05808147]